Cogmind - Beta 11.1 *** ADVENTURER MODE // 2022.05.18 @ 15:26:52 Player: lobstro Result: Destroyed by D-53 Grenadier with Mini Grenade Launcher Performance ------------- Evolutions (0) 0 Regions Visited (0) 0 Robots Destroyed (2) 10 Value Destroyed (14) 14 Prototype IDs (0) 0 Alien Tech Used (0) 0 Bonus (0) 0 TOTAL SCORE: 24 Bonus ------- None Cogmind --------- Core Integrity 0/250 Matter 195/300 Energy 250/250 System Corruption 7% Temperature Cool (0) Movement Treading (160) Location -11/Scrapyard Parts ------- > --- POWER (1) -------- Ion Engine > --- PROPULSION (2) --- Light Treads > --- UTILITY (2) ------ Small Storage Unit Seismic Detector > --- WEAPON (2) ------- Mining Laser > --- INVENTORY (8) ---- Light Ion Engine Light Ion Engine Peak State ------------ > --- POWER ------------ Ion Engine > --- PROPULSION ------- Aluminum Leg Aluminum Leg > --- UTILITY ---------- Small Storage Unit Improved Terrain Scanner > --- WEAPON ----------- Assault Rifle Assault Rifle > --- INVENTORY -------- Light Ion Engine Light Treads Light Treads Small Laser [Rating: 9] Favorites ----------- Power Ion Engine Engine Ion Engine Propulsion Aluminum Leg Treads Light Treads Leg Aluminum Leg Utility Small Storage Unit Device Improved Terrain Scanner Storage Small Storage Unit Weapon Assault Rifle Energy Gun Small Laser Ballistic Gun Assault Rifle Special Weapon Mining Laser Build | -11 ------- Run | Scr Slots Evolved . | . Power . | . Propulsion . | . Utility . | . Weapon . | . Parts Attached 12 | 12 Power 1 | 1 Engine 1 | 1 Core . | . Reactor . | . Propulsion 4 | 4 Treads 2 | 2 Leg 2 | 2 Wheel . | . Hover . | . Flight . | . Utility 3 | 3 Device 2 | 2 Storage 1 | 1 Processor . | . Hackware . | . Protection . | . Artifact . | . Weapon 4 | 4 Energy Gun 1 | 1 Energy Cannon . | . Ballistic Gun 2 | 2 Ballistic Cannon . | . Launcher . | . Special Weapon 1 | 1 Impact Weapon . | . Slashing Weapon . | . Piercing Weapon . | . Special Melee Weapon . | . Unidentified Prototypes . | . Parts Lost 6 | 6 Power . | . Propulsion 2 | 2 Utility 1 | 1 Weapon 3 | 3 Highest Loss Streak 6 | 6 To Critical Strikes . | . Average Slot Usage (%) . | . Naked Turns . | . Heaviest Build 15 | 15 Greatest Support 40 | 40 Greatest Overweight (x) 2 | 2 Average Overweight (x) . | . Largest Inventory Capacity 8 | 8 Average Capacity 7 | 7 Most Carried 7 | 7 Average Carried 5 | 5 Final Capacity 8 | 8 Final Carried 2 | 2 Class Distribution -------------------- None Dominant Class ---------------- None Resources | -11 ----------- Run | Scr Matter Collected 271 | 271 Remotely . | . Salvage Created 111 | 111 Parts 8 | 8 Haulers Intercepted . | . Recyclers Shooed . | . Parts Field Recycled . | . Retrieved Matter . | . Parts Self-Destructed . | . Prevented . | . Kills | -11 ------- Run | Scr Combat Hostiles Destroyed 4 | 4 Guns 4 | 4 Classes Destroyed 2 | 2 Tunneler 2 | 2 Assembled 4 | 4 Best Kill Streak 4 | 4 Combat Bots Only 4 | 4 Max Kills in Single Turn 1 | 1 Gunslinging . | . Exploded . | . Melee . | . Uniques/NPCs Destroyed . | . Combat | -11 -------- Run | Scr Damage Taken 977 | 977 Core 252 | 252 Absorbed by Shields . | . Core Remaining (%) . | . Volleys Fired 16 | 16 Largest 2 | 2 Hottest 60 | 60 Shots Fired 32 | 32 Gun 32 | 32 Cannon . | . Launcher . | . Special . | . Kinetic 31 | 31 Thermal 1 | 1 Explosive . | . Electromagnetic . | . Robot Hit Streak 5 | 5 Robot Miss Streak 5 | 5 Penetration Max . | . Secondary Targets 3 | 3 Max Gunslinging Chain 1 | 1 Shots Hit Robots 20 | 20 Core Hits 10 | 10 Critical Kills . | . Critical Parts Destroyed . | . Critical Strikes . | . Melee Attacks . | . Impact . | . Slashing . | . Piercing . | . Sneak Attacks . | . Combat Hostiles . | . Follow-up Attacks . | . Damage Inflicted 260 | 260 Guns 257 | 257 Cannons . | . Explosions . | . Melee . | . Ramming 3 | 3 Kinetic 247 | 247 Thermal 10 | 10 Explosive . | . Electromagnetic . | . Impact . | . Slashing . | . Piercing . | . Highest Corruption 7 | 7 Average Corruption 6 | 6 Corruption Purged . | . Corruption Blocked . | . Effects 1 | 1 Parts Rejected 1 | 1 Overload Shots . | . Overflow Damage . | . Projectiles . | . Explosions . | . Melee . | . Knockbacks . | . Impact . | . Kinetic . | . Secondary . | . Self-Inflicted Damage . | . Shots . | . Rammed . | . Targets Rammed 2 | 2 Kicked 2 | 2 Crushed . | . Highest Temperature 119 | 119 Average Temperature 39 | 39 Received Heat Transfer 240 | 240 Siege Activations . | . Robots Corrupted . | . Combat Hostiles . | . Parts Fried . | . Impact Corruptions . | . Robots Melted . | . Combat Hostiles . | . Parts Melted . | . Heat Transferred 25 | 25 Parts Sabotaged . | . Parts Stolen . | . Parts Stripped . | . Power Chain Reactions . | . Missiles Intercepted . | . Alert | -11 ------- Run | Scr Peak Influence 15 | 15 Initial . | . Average . | . Maximum Alert Level . | . Low Security (%) 100 | 100 Level 1 . | . Level 2 . | . Level 3 . | . Level 4 . | . Level 5 . | . High Security . | . Max Security . | . Squads Dispatched . | . Investigation . | . Extermination . | . Reinforcement . | . Assault . | . Garrison . | . Intercept . | . Searches Triggered . | . Construction Impeded . | . Haulers Reinforced . | . Active Scanning Responses . | . Cargo Convoy Interrupts . | . Stealth | -11 --------- Run | Scr Distress Signals . | . Communications Jammed . | . Distress Signals . | . Times Spotted 20 | 20 Peak Tracking Total 13 | 13 Tactical Retreats 1 | 1 Traps | -11 ------- Run | Scr Traps Triggered . | . Indirectly . | . Trap Hack Attempts . | . Triggered . | . Disarmed . | . Reprogrammed . | . Reused . | . Traps Extracted . | . Installed . | . Triggered . | . Machines | -11 ---------- Run | Scr Machines Disabled . | . Max in Single Turn . | . Machines Sabotaged . | . Garrisons Compromised . | . Overloaded Fab Kills . | . Hacking | -11 --------- Run | Scr Machines Accessed . | . Terminals . | . Fabricators . | . Repair Stations . | . Recycling Units . | . Scanalyzers . | . Garrison Access . | . Total Hacks . | . Successful . | . Failed . | . Catastrophic . | . Database Lockouts . | . Manual . | . Terminals . | . Fabricators . | . Repair Stations . | . Recycling Units . | . Scanalyzers . | . Garrison Access . | . Terminal Hacks . | . Fabricator Hacks . | . Repair Station Hacks . | . Recycling Unit Hacks . | . Scanalyzer . | . Garrison Access Hacks . | . Unauthorized Hacks . | . Terminals . | . Fabricators . | . Repair Stations . | . Recycling Units . | . Scanalyzers . | . Garrison Access . | . Data Cores Recovered . | . Used . | . Hacking Detections . | . Full Trace Events . | . Feedback Events . | . Feedback Blocked . | . Robot Schematics Acquired . | . Robots Built . | . Authchips . | . Time . | . Total Robot Build Rating . | . Part Schematics Acquired . | . Parts Built . | . Authchips . | . Time . | . Total Part Build Rating . | . Parts Repaired . | . Time . | . Parts Recycled . | . Recycled Matter . | . Retrieved Matter . | . Retrieved Components . | . Parts Scanalyzed . | . Part Schematics Acquired . | . Parts Damaged . | . Bothacking | -11 ------------ Run | Scr Used RIF Installer . | . Robots Hacked . | . Non-combat . | . Combat . | . Robot Hacks Applied . | . Relay Couplers Released . | . Fabnet Peak Effective % . | . Robots Rewired . | . Allies Hacked . | . Hacks Repelled . | . Allies | -11 -------- Run | Scr Total Allies . | . Largest Group . | . Highest-Rated Group . | . Highest-Rated Ally . | . Total Orders . | . Ally Attacks . | . Total Damage . | . Kills . | . Allies Corrupted . | . Allies Melted . | . Intel | -11 ------- Run | Scr Robot Analysis Total . | . Derelict Logs Recovered . | . Drone Launches . | . Drone Recoveries . | . Exploration | -11 ------------- Run | Scr Turns Passed 3548 | 3548 Spaces Moved 1103 | 1103 Core 12 | 12 Treads 12 | 12 Legs 1079 | 1079 Wheels . | . Hover . | . Flight . | . Fastest Speed 50 | 50 Average Speed 120 | 120 Slowest Speed 190 | 190 Overloaded Moves . | . Propulsion Burnouts . | . Robots Hopped . | . Cave-ins Triggered . | . Exploration Rate (%) 94 | 94 Regions Visited . Branch Regions . Pre-discovered Areas . | . Known Exits Taken . | . Unknown Exits Taken . | . Scrap Searched . | . Spaces Dug . | . Terrain Destroyed . | . Melee . | . Projectile . | . AOE . | . Terrain Rammed . | . Walls Destroyed . | . Machines Disabled . | . Actions | -11 --------- Run | Scr Total 3289 | 3289 Wait 2148 | 2148 Move 1103 | 1103 Hop . | . Pick Up 8 | 8 Fast Attach 6 | 6 Attach 6 | 6 Detach . | . Swap . | . Drop . | . Fire 16 | 16 Melee . | . Ram . | . Kick 2 | 2 Crush . | . Escape Stasis . | . Rewire . | . Trap . | . Miscellaneous . | . Route ------- -11/Scrapyard (discovered 1 exit: [*Mat]) History --------- Turn | Location | Event 2 | -11/Scrapyard | Met Revision 17 14 | -11/Scrapyard | Discovered new exit (range 15) 3479 | -11/Scrapyard | Assembled infested the area 3526 | -11/Scrapyard | Core integrity fell below 50% 3546 | -11/Scrapyard | Core integrity fell below 20% 3549 | -11/Scrapyard | Destroyed by D-53 Grenadier with Mini Grenade Launcher Last Messages --------------- 03523_ System corrupted by crushing effect (+1). 03525_ Knocked back. 03525_ Aluminum Leg destroyed. 03526_ Assault Rifle destroyed. 03527_ as-84222 destroyed. 03528_ D-53 Grenadier system corrupted by crushing effect. 03529_ as-58690 destroyed. 03529_ as-48180 destroyed. 03529_ as-98772 destroyed. 03529_ as-12116 destroyed. 03529_ as-59285 destroyed. 03529_ Sml. Laser destroyed. 03531_ as-79447 destroyed. 03531_ as-15055 destroyed. 03531_ as-86520 destroyed. 03533_ as-90459 destroyed. 03536_ as-82692 destroyed. 03538_ Acquired 5 matter. 03543_ System corrupted: Lgt. Treads rejected. 03545_ The unstable cave ceiling collapses. Map ----- +----------------------------------------------------+ | | | | | | | | | | | | | | | | | ?????????????????????????????????????????????????? | | ????????#???????????????#???????????#????????????? | | ????????????????????##?#??#?##???#?????#?????????? | | ??????????????#??#?????###??##???????????????????? | | ????????????????##?#??????#???????#??????????????? | | ??????????????#??######?###?##????##?#?#?????????? | | ????????#?????????## "## ##????#???##?????#?????? | | ???????????????#??# " #????#??#?????#???????? | | ?#????#????#?#????# " ##???###????#??#??????? | | ???????????##??#??# " #?##?????#?????#??????? | | ????????????????##?# " ####?##??????####?????? | | ??#????####? #??##?# " # ## ##??????????????? | | #????### ##? #?## # ##?#???????????? | | ###### # # # # #?????#??#????? | | # #?????##??#???? | | % ##??#?#????????? | | ## ### = ####??#???????? | | ?###?## # d @ ####??#?######? | | #?????# # # ####### #? | | ??##??# ## # # # #? | | #?????# #?#??#?##### # # #? | | ?#????# #?#????##?##### # # #? | | ??????# ##????#??################# # #? | | ####### #???######### #??????#??# # #? | | # ##### #?????#?#?# # #? | | # # #?#??###### # #? | | # ##### ##### #?#???##?## # ## | | #?#?######??# #????????###### ###### ### | | # #???##??#???# ##??#????# | | # # #????????#??# ########## | | ####### ##?????????## # # ############## | | ?????# ##########?# # # #?#####??????# | | #????# #?# # # #?# ######## | | ?????# ### # # #?# | | ?????# ####### # #?# | | #????######?????# ### ## # #?# | | ????????????????# #?# ## # #?# | | ??#?????????#???# #?# ## # #?# | | ?????????######## #?# ## # #?## ######### | | #??????#?# ### ########### #????????????? | | ??#?##???# # # #???# ###########??? | | ?????#???# # # ##### # #??? | +----------------------------------------------------+ Best States ------------- Heat Dissipation 25 Energy Generation 10 Energy Capacity 250 Matter Stores 278 Matter Capacity 300 Sight Range 16 Terrain Scan Range 16 Terrain Scan Density 10 Resistance: KI 20 Resistance: TH 20 Resistance: EX 20 Resistance: EM 20 Resistance: I 20 Resistance: S 20 Resistance: P 20 Evasion (%) 55 Recoil Reduction 2 Offensive Hacking 10 Item Schematics ----------------- None Robot Schematics ------------------ None Fabricated ------------ Nothing Alien Tech Used ----------------- None Achievements -------------- Curiosity Killed The Cat Challenges ------------ None Game ------ Seed SniperSurveybotTrap Manual? 0 Play Time 00:19:46 Cumulative 29.3 hours Start 2022.05.18 @ 15:16:25 End 2022.05.18 @ 15:26:52 Sessions 0 Manual Loads 0 Difficulty Adventurer Special Mode None Game No. 14 Rogue 0 Adventurer 14 Explorer 0 Win Type - Total 0 Types 0/0/0/0/0/0/0/0/0 Lore% 9 Gallery% 23 Achievement% 21 Wizard Run 0 Options --------- ASCII 0 Keyboard 0 Movement Mouse Keybinds 0 Fullscreen 1 Font 24/Smallcaps Map View 76x50 Tactical HUD 1 Map Filters NONE Filters NONE Steam 1 RUN: ad3d39aa-ded6-42a7-8fe2-ccf1affc39d3